{"text_format":"1","workbook":"xlsx","n_sheets":6,"sheets":["Instructivo de llenado","SGSI-CA-F-016","Entidades-dependencias","CDir","Servicios","Region"],"not_rendered":{"charts":0,"images":1,"macros":0,"external_links":0,"defined_names":15,"comments":1,"pivot_tables":0},"unopened":[],"bounds":{"document_bytes":16777216,"sheet_cells":100000,"rows_first":2000,"rows_last":500,"rows_between":2000,"halvings":0,"cell_chars":16384,"cell_head_chars":4096},"cells_cut":0,"cells_raw":0,"read":"whole","date_system":"1900"}

{"sheet":"Instructivo de llenado","index":0,"n_rows":41,"n_cols":3,"rows_kept":41,"cut":false,"hidden":false,"merged":[[26,1,30,1],[26,0,30,0],[34,0,34,2],[0,0,0,2],[2,0,2,2],[7,2,10,2],[4,0,4,2],[12,0,12,2],[20,0,20,2]]}
["Sistema de Gestión de Seguridad de la Información (SGSI)"]
[]
["Instructivo de Llenado del Formato SGSI-CA-F-016"]
["# Campo","Nombre del Campo","Descripción del Llenado"]
["Apartado de \"Información DGTI\""]
[1,"Folio","Es campo es para se llenado exclusivamente por el administrador que presta el servicio y será un número consecutivo conforme a las solicitudes atendidas"]
[2,"Nombre del Titular","Seleccionar de la lista desplegable el nombre del titular de la dependencia a quien le dirigira la solicitud, de igual, en dicho catalogo estan el titular de la DGTI, de la DSRIT y los Coordinadores Regionales de TI"]
[3,"Dirección","Estos campos en automático se llenaran, conforme a la selección que hizo del campo anterior \" Nombre del Titular\""]
[4,"Puesto"]
[5,"Extensión "]
[6,"Correo"]
[7,"Fecha de Solicitud","Este campo automático se llena, conforme a la fecha en que esta haciendo la solicitud"]
["Apartado de  \"Director Entidad Académica /Dependencia o Jefe de Depto:\""]
[8,"Nombre del Titular","Escribir el nombre del titular de la entidad académica y/o depedencia o en su caso el jefe de departamento que esta realizando la solicitud"]
[9,"Clave","Escribir la clave de la entidad académica o dependencia donde esta adscrito el titular o jefe de departamento que esta solicitando el servicio"]
[10,"Descripción","Este campo se llena automáticamente, dependiendo de la clave de la entidad académica o dependencia escrita"]
[11,"Puesto","Escribir el nombre del puesto que ocupa el solicitante"]
[12,"Extensión","Escribir el número de extensión uv, donde se pueda localizar para cualquier duda"]
[13,"Correo","Escribir el correo electrónico institucianal de la personal que esta haciendo la solicitud del servicio"]
[14,"Región","Este campo se llena automáticamente, dependiendo de la clave de la entidad académica o dependencia escrita"]
["Apartado de  \"Datos del Propietario de la Cuenta\""]
[15,"Número de Personal","Escribir el número de personal que tiene asignado la persona a quien se le activará el servicio solicitado"]
[16,"Nombre del Usuario","Escribir el nombre de la persona que tendrá asignado el servicio solicitado y el cual se hará responsable por el uso del servicio"]
[17,"Puesto","Escribir el puesto que desempeña la persona que se le asignará el servicio"]
[18,"Tel. Directo o Ext","Escribir un número telefónico directo o extensión, donde se pueda localizar al usuario para informarle sobre el estatus de la solicitud hecha."]
[19,"Tipo de Mov","Seleccionar de la lista desplegable el tipo de movimiento a realizar:\n1.- Alta (crear cuenta nueva)\n2.- Baja (dar de baja una cuenta o servicio que tenga asignado el usuario)\n3.- Cambio (cambiar contraseñas o permisos de los servicios que tenga asignados)\n4.- Suspensión (baja temporal del servicio)2.- Baja (dar de baja una cuenta o servicio que tenga asignado el usuario)"]
[20,"Tipo de Solicitud","Seleccionar el tipo de servicio que se le asignará a la persona, el cual puede ser:"]
[null,null,"CI = Clave Institucional"]
[null,null,"CE = Correo electrónico Institucional"]
[null,null,"VPN = Red Privada Virtual (Este servicio no esta disponible para la comunidad universitaria)"]
[null,null,"FTP = Protocolo de Transferencia de Archivos (Este servicio no esta disponible para la comunidad estudiantil)"]
[21,"Observaciones","Escribir la justificación solo para los servicios de VPN y FTP (Este servicio no esta diponible para la comunidad estudiantil)"]
[22,"Firma del Propietario de la cuenta","Firma de la persona que  tendra asignado el servicio solicitado y quién debera aceptar los terminos de uso y responsabilidades como se estipula en el Reglamento para la Seguridad de la Información."]
[23,"Firma del Solicitante","Este campo se llena automáticamente, con el nombre del titular de la entidad académica o dependencia o jefe de departamento que esta realizando la solicitud"]
["Apartado de  \"Admón. del Servicio\""]
[24,"Nombre","Escribir el nombre de la persona que atendio la solicitud"]
[25,"Puesto","Puesto que desempeña la persona que atendio la solicitud"]
[26,"Firma ","Firma de la persona que atendio la solicitud"]
[27,"Fecha y hora de recepción","Escribir la fecha y hora que fue recibida la solicitud del servicio"]
[28,"Fecha y hora de atención","Escribir la fech y hora que fue atendido la solicitud"]
[29,"Observaciones","Escribir alguna observación realizada en el servicio,"]

{"sheet":"SGSI-CA-F-016","index":1,"n_rows":54,"n_cols":17,"rows_kept":54,"cut":false,"hidden":false,"merged":[[28,0,28,16],[36,8,37,16],[32,8,32,16],[38,8,40,16],[32,0,32,7],[36,1,36,5],[30,0,31,2],[30,3,31,16],[29,0,29,4],[29,5,29,7],[26,1,26,5],[26,6,26,9],[8,11,10,16],[11,1,11,16],[13,9,13,10],[19,6,19,9],[16,13,16,16],[14,1,14,4],[25,1,25,5],[21,1,21,5],[14,5,14,16],[24,1,24,5],[24,6,24,9],[21,6,21,9],[22,1,22,5],[22,6,22,9],[25,6,25,9],[18,6,18,9],[5,4,6,10],[7,1,7,10],[8,1,8,10],[6,0,6,2],[13,7,13,8],[10,7,10,10],[12,1,12,2],[12,3,12,4],[12,5,12,16],[10,0,10,5],[1,0,1,10],[3,0,3,10],[9,8,9,9],[5,3,6,3],[7,11,7,16],[1,11,1,13],[1,14,1,16],[3,11,3,13],[3,14,3,16],[4,0,4,10],[9,1,9,6],[4,11,4,16],[54,0,56,16],[53,0,53,5],[49,8,49,10],[49,11,49,16],[49,1,49,6],[50,1,50,6],[50,8,52,10],[50,11,52,16],[51,1,51,6],[48,0,48,2],[29,8,29,11],[29,12,29,16],[41,8,44,16],[48,3,48,16],[37,1,37,5],[46,8,46,16],[27,0,27,16],[16,11,17,11],[13,12,13,16],[19,1,19,5],[20,1,20,5],[18,1,18,5],[13,1,13,6],[20,6,20,9],[16,0,17,0],[16,1,17,5],[16,6,17,9],[16,10,17,10],[16,12,17,12],[15,0,15,16],[23,1,23,5],[23,6,23,9]]}
[]
["UNIVERSIDAD VERACRUZANA",null,null,null,null,null,null,null,null,null,null,"Folio:"]
[]
["Control de Cuentas de Acceso y Servicios de Red",null,null,null,null,null,null,null,null,null,null,"Versión:",null,null,"2.01"]
["SGSI-CA-F-016",null,null,null,null,null,null,null,null,null,null,"Agosto.2017"]
[]
["Información DGTi:"]
["Nombre  del Titular:",null,null,null,null,null,null,null,null,null,null,"Fecha de Solicitud"]
["Dirección:",{"$f":"IF(LEN($B$8)=0,\"\",VLOOKUP($B$8,direcciones,2,FALSE))","v":""},null,null,null,null,null,null,null,null,null,{"$f":"TODAY()","v":"2018-01-23"}]
["Puesto:",{"$f":"IF(LEN($B$8)=0,\"\",VLOOKUP($B$8,direcciones,3,FALSE))","v":""},null,null,null,null,null,null,"Extensión:",null,{"$f":"IF(LEN($B$8)=0,\"\",VLOOKUP($B$8,direcciones,5,FALSE))","v":""}]
["Director Entidad Académica /Dependencia o Jefe de Depto:",null,null,null,null,null,"Correo:",{"$f":"IF(LEN($B$8)=0,\"\",VLOOKUP($B$8,direcciones,4,FALSE))","v":""}]
["Nombre del Titular:"]
["Clave ",null,null,"Descripción",null,{"$f":"IF(OR(LEN(clave)=0,clave=0),\"\",VLOOKUP($B$13,NomEntDepe,2,FALSE))","v":""}]
["Puesto:",null,null,null,null,null,null,"Extensión:",null,null,null,"Correo:"]
["Región:",{"$f":"IF(OR(LEN(clave)=0,clave=0),\"\",VLOOKUP($B$13,NomEntDepe,3,FALSE))","v":""}]
["Datos del propietario de la cuenta (Si la solicitud es para una cuenta institucional de dependencia, en el campo de Nombre de Usuario escribir la propuesta del nombre que se quiere para la cuenta)"]
["Núm. Personal","Nombre del Usuario / Cuenta de dependencia",null,null,null,null,"Puesto",null,null,null,"Tel. Directo o Ext.","Tipo de Mov","Tipo de Cuenta","Tipo de Servicio"]
[null,null,null,null,null,null,null,null,null,null,null,null,null,"CI","CE","VPN","FTP"]
[]
[]
[]
[]
[]
[]
[]
[]
[]
["Observaciones:"]
["Describir la justificación para la solicitudes de los servicios de VPN y FTP, así como el tiempo de duración que tendrá el servicio y si el tipo de CUENTA  INSTITUCIONAL es TEMPORAL."]
["Fecha de Inicio del Servicio: ",null,null,null,null,null,null,null,"Fecha deTerminación del Servicio: "]
["Justificación: "]
[]
["Firma de Solicitante",null,null,null,null,null,null,null,"Notas:"]
[null,null,null,null,null,null,null,null,"1. Descripción de Nomenclatura de Servicios:"]
[null,null,null,null,null,null,null,null,"           CI :  Cuenta Institucional"]
[null,null,null,null,null,null,null,null,"           CE : Correo Electronico"]
[null,null,null,null,null,null,null,null,"2. La solicitud de los servicios de VPN y FTP no esta disponible para la comunidad estudiantil"]
[null,{"$f":"IF(LEN($B$12)=0,\"\",$B$12)","v":""}]
[null,null,null,null,null,null,null,null,"3. La solicitud de las cuentas de correo para la comunidad estudiantil, se dan de alta de manera automática al ser parte de la comunidad Universitaria."]
[]
[]
[]
[]
[]
[]
[]
[null,null,null,null,null,null,null,null,"Firma del Propietario de la cuenta"]
[]
["Admón del Servicio",null,null,"Exclusivo para ser llenado por el administrador del servicio solicitado"]
["Nombre:",null,null,null,null,null,null,null,"Fecha y Hora de Recepción:",null,null,"Fecha y Hora de Atención"]
["Puesto:"]
["Firma"]
[]
["Observaciones (apartado para el admón. Servicio)"]

{"sheet":"Entidades-dependencias","index":2,"n_rows":308,"n_cols":5,"rows_kept":308,"cut":false,"hidden":true,"merged":[]}
["Clave","Entidad/Dependencia","Región","Dependencia/Entidad2"]
[11101,"UNIDAD ACADÉMICA DE INGENIERÍA Y CIENCIAS QUÍMICAS","Xalapa","11101 UNIDAD ACADÉMICA DE INGENIERÍA Y CIENCIAS QUÍMICAS",{"$f":"VALUE(A2)","v":11101}]
[11102,"FACULTAD DE INGENIERÍA CIVIL","Xalapa","11102 FACULTAD DE INGENIERÍA CIVIL",{"$f":"VALUE(A3)","v":11102}]
[11103,"FACULTAD DE INGENIERÍA MECÁNICA ELÉCTRICA","Xalapa","11103 FACULTAD DE INGENIERÍA MECÁNICA ELÉCTRICA",11103]
[11104,"FACULTAD DE INGENIERÍA QUÍMICA","Xalapa","11104 FACULTAD DE INGENIERÍA QUÍMICA",11104]
[11105,"FACULTAD DE QUÍMICA FARMACÉUTICA BIÓLOGA","Xalapa","11105 FACULTAD DE QUÍMICA FARMACÉUTICA BIÓLOGA",11105]
[11106,"FACULTAD DE FÍSICA E INTELIGENCIA ARTIFICIAL","Xalapa","11106 FACULTAD DE FÍSICA E INTELIGENCIA ARTIFICIAL",11106]
[11107,"FACULTAD DE MATEMÁTICAS","Xalapa","11107 FACULTAD DE MATEMÁTICAS",11107]
[11108,"FACULTAD DE ARQUITECTURA","Xalapa","11108 FACULTAD DE ARQUITECTURA",11108]
[11109,"FACULTAD DE INSTRUMENTACIÓN ELECTRÓNICA","Xalapa","11109 FACULTAD DE INSTRUMENTACIÓN ELECTRÓNICA",11109]
[11110,"INSTITUTO DE CIENCIAS BÁSICAS","Xalapa","11110 INSTITUTO DE CIENCIAS BÁSICAS",11110]
[11111,"DEPARTAMENTO DE FÍSICA","Xalapa","11111 DEPARTAMENTO DE FÍSICA",11111]
[11112,"DEPARTAMENTO DE INTELIGENCIA ARTIFICIAL","Xalapa","11112 DEPARTAMENTO DE INTELIGENCIA ARTIFICIAL",11112]
[11113,"UNIDAD DE SERVICIOS DE APOYO DE RESOLUCIÓN ANÁLITICA (SARA)","Xalapa","11113 UNIDAD DE SERVICIOS DE APOYO DE RESOLUCIÓN ANÁLITICA (SARA)",11113]
[11114,"CENTRO DE CIENCIAS DE LA TIERRA","Xalapa","11114 CENTRO DE CIENCIAS DE LA TIERRA",11114]
[11201,"FACULTAD DE DERECHO","Xalapa","11201 FACULTAD DE DERECHO",11201]
[11202,"UNIDAD ACADÉMICA DE HUMANIDADES","Xalapa","11202 UNIDAD ACADÉMICA DE HUMANIDADES",11202]
[11203,"FACULTAD DE IDIOMAS","Xalapa","11203 FACULTAD DE IDIOMAS",11203]
[11204,"FACULTAD DE PEDAGOGÍA","Xalapa","11204 FACULTAD DE PEDAGOGÍA",11204]
[11205,"FACULTAD DE LETRAS ESPAÑOLAS","Xalapa","11205 FACULTAD DE LETRAS ESPAÑOLAS",11205]
[11206,"FACULTAD DE HISTORIA","Xalapa","11206 FACULTAD DE HISTORIA",11206]
[11207,"FACULTAD DE FILOSOFÍA","Xalapa","11207 FACULTAD DE FILOSOFÍA",11207]
[11208,"FACULTAD DE ANTROPOLOGÍA","Xalapa","11208 FACULTAD DE ANTROPOLOGÍA",11208]
[11209,"FACULTAD DE SOCIOLOGÍA","Xalapa","11209 FACULTAD DE SOCIOLOGÍA",11209]
[11211,"INSTITUTO DE ANTROPOLOGÍA","Xalapa","11211 INSTITUTO DE ANTROPOLOGÍA",11211]
[11212,"MUSEO DE ANTROPOLOGÍA","Xalapa","11212 MUSEO DE ANTROPOLOGÍA",11212]
[11213,"INSTITUTO DE INVESTIGACIONES JURÍDICAS","Xalapa","11213 INSTITUTO DE INVESTIGACIONES JURÍDICAS",11213]
[11214,"INSTITUTO DE INVESTIGACIONES HISTÓRICO-SOCIALES","Xalapa","11214 INSTITUTO DE INVESTIGACIONES HISTÓRICO-SOCIALES",11214]
[11215,"INSTITUTO DE INVESTIGACIONES LINGÜÍSTICO-LITERARIAS","Xalapa","11215 INSTITUTO DE INVESTIGACIONES LINGÜÍSTICO-LITERARIAS",11215]
[11216,"INSTITUTO DE INVESTIGACIONES EN EDUCACIÓN","Xalapa","11216 INSTITUTO DE INVESTIGACIONES EN EDUCACIÓN",11216]
[11217,"CENTRO DE INVESTIGACIÓN EN DOCUMENTACIÓN SOBRE LA UNIVERSIDAD","Xalapa","11217 CENTRO DE INVESTIGACIÓN EN DOCUMENTACIÓN SOBRE LA UNIVERSIDAD",11217]
[11218,"INSTITUTO DE FILOSOFÍA","Xalapa","11218 INSTITUTO DE FILOSOFÍA",11218]
[11219,"CENTRO DE ESTUDIOS DE LA CULTURA Y LA COMUNICACIÓN","Xalapa","11219 CENTRO DE ESTUDIOS DE LA CULTURA Y LA COMUNICACIÓN",11219]
[11220,"CENTRO DE ESTUDIOS SOBRE DERECHO, GLOBALIZACIÓN Y SEGURIDAD","Xalapa","11220 CENTRO DE ESTUDIOS SOBRE DERECHO, GLOBALIZACIÓN Y SEGURIDAD",11220]
[11301,"FACULTAD DE CONTADURÍA Y ADMINISTRACIÓN","Xalapa","11301 FACULTAD DE CONTADURÍA Y ADMINISTRACIÓN",11301]
[11302,"UNIDAD ACADÉMICA DE ECONOMÍA Y ESTADÍSTICA","Xalapa","11302 UNIDAD ACADÉMICA DE ECONOMÍA Y ESTADÍSTICA",11302]
[11303,"FACULTAD DE ECONOMÍA","Xalapa","11303 FACULTAD DE ECONOMÍA",11303]
[11304,"FACULTAD DE ESTADÍSTICA E INFORMÁTICA","Xalapa","11304 FACULTAD DE ESTADÍSTICA E INFORMÁTICA",11304]
[11305,"INSTITUTO DE INVESTIGACIONES Y ESTUDIOS SUPERIORES ECONÓMICOS Y SOCIALES","Xalapa","11305 INSTITUTO DE INVESTIGACIONES Y ESTUDIOS SUPERIORES ECONÓMICOS Y SOCIALES",11305]
[11306,"INSTITUTO DE INVESTIGACIONES Y ESTUDIOS SUPERIORES DE LAS CIENCIAS ADMINISTRATIVAS","Xalapa","11306 INSTITUTO DE INVESTIGACIONES Y ESTUDIOS SUPERIORES DE LAS CIENCIAS ADMINISTRATIVAS",11306]
[11307,"INSTITUTO DE CONTADURÍA PÚBLICA","Xalapa","11307 INSTITUTO DE CONTADURÍA PÚBLICA",11307]
[11308,"INTELIGENCIA ARTIFICIAL","Xalapa","11308 INTELIGENCIA ARTIFICIAL",11308]
[11309,"FACULTAD DE CIENCIAS ADMINISTRATIVAS Y SOCIALES","Xalapa","11309 FACULTAD DE CIENCIAS ADMINISTRATIVAS Y SOCIALES",11309]
[11401,"UNIDAD ACADÉMICA DE CIENCIAS DE LA SALUD","Xalapa","11401 UNIDAD ACADÉMICA DE CIENCIAS DE LA SALUD",11401]
[11402,"FACULTAD DE MEDICINA","Xalapa","11402 FACULTAD DE MEDICINA",11402]
[11403,"FACULTAD DE ODONTOLOGÍA","Xalapa","11403 FACULTAD DE ODONTOLOGÍA",11403]
[11404,"FACULTAD DE BIOANÁLISIS","Xalapa","11404 FACULTAD DE BIOANÁLISIS",11404]
[11405,"FACULTAD DE NUTRICIÓN","Xalapa","11405 FACULTAD DE NUTRICIÓN",11405]
[11406,"FACULTAD DE ENFERMERÍA","Xalapa","11406 FACULTAD DE ENFERMERÍA",11406]
[11407,"FACULTAD DE PSICOLOGÍA","Xalapa","11407 FACULTAD DE PSICOLOGÍA",11407]
[11408,"INSTITUTO DE CIENCIAS DE LA SALUD","Xalapa","11408 INSTITUTO DE CIENCIAS DE LA SALUD",11408]
[11409,"INSTITUTO DE INVESTIGACIONES PSICOLÓGICAS","Xalapa","11409 INSTITUTO DE INVESTIGACIONES PSICOLÓGICAS",11409]
[11410,"HOSPITAL ESCUELA","Xalapa","11410 HOSPITAL ESCUELA",11410]
[11411,"INSTITUTO DE SALUD PÚBLICA","Xalapa","11411 INSTITUTO DE SALUD PÚBLICA",11411]
[11412,"CENTRO PARA EL DESARROLLO HUMANO E INTEGRAL DE LOS UNIVERSITARIOS (CENDHIU)","Xalapa","11412 CENTRO PARA EL DESARROLLO HUMANO E INTEGRAL DE LOS UNIVERSITARIOS (CENDHIU)",11412]
[11413,"INSTITUTO DE PSICOLOGÍA Y EDUCACIÓN","Xalapa","11413 INSTITUTO DE PSICOLOGÍA Y EDUCACIÓN",11413]
[11414,"CENTRO DE INVESTIGACIONES BIOMÉDICAS","Xalapa","11414 CENTRO DE INVESTIGACIONES BIOMÉDICAS",11414]
[11501,"UNIDAD ACADÉMICA DE CIENCIAS BIOLÓGICAS Y AGROPECUARIAS","Xalapa","11501 UNIDAD ACADÉMICA DE CIENCIAS BIOLÓGICAS Y AGROPECUARIAS",11501]
[11502,"FACULTAD DE BIOLOGÍA","Xalapa","11502 FACULTAD DE BIOLOGÍA",11502]
[11503,"FACULTAD DE CIENCIAS AGRÍCOLAS","Xalapa","11503 FACULTAD DE CIENCIAS AGRÍCOLAS",11503]
[11504,"INSTITUTO DE INVESTIGACIONES BIOLÓGICAS","Xalapa","11504 INSTITUTO DE INVESTIGACIONES BIOLÓGICAS",11504]
[11505,"INSTITUTO DE NEUROETOLOGÍA","Xalapa","11505 INSTITUTO DE NEUROETOLOGÍA",11505]
[11506,"INSTITUTO DE INVESTIGACIONES FORESTALES","Xalapa","11506 INSTITUTO DE INVESTIGACIONES FORESTALES",11506]
[11508,"INSTITUTO DE BIOTECNOLOGÍA Y ECOLOGÍA APLICADA","Xalapa","11508 INSTITUTO DE BIOTECNOLOGÍA Y ECOLOGÍA APLICADA",11508]
[11509,"CENTRO DE INVESTIGACIONES TROPICALES","Xalapa","11509 CENTRO DE INVESTIGACIONES TROPICALES",11509]
[11510,"INSTITUTO DE INVESTIGACIONES MULTIDISCIPLINARIAS","Xalapa","11510 INSTITUTO DE INVESTIGACIONES MULTIDISCIPLINARIAS",11510]
[11601,"UNIDAD ACADÉMICA DE ARTES","Xalapa","11601 UNIDAD ACADÉMICA DE ARTES",{"$f":"VALUE(A67)","v":11601}]
[11602,"FACULTAD DE MÚSICA","Xalapa","11602 FACULTAD DE MÚSICA",11602]
[11603,"FACULTAD DE DANZA","Xalapa","11603 FACULTAD DE DANZA",11603]
[11604,"FACULTAD DE ARTES PLÁSTICAS","Xalapa","11604 FACULTAD DE ARTES PLÁSTICAS",11604]
[11605,"FACULTAD DE TEATRO","Xalapa","11605 FACULTAD DE TEATRO",11605]
[11606,"INSTITUTO DE ARTES PLÁSTICAS","Xalapa","11606 INSTITUTO DE ARTES PLÁSTICAS",11606]
[11607,"CENTRO DE INICIACIÓN MUSICAL INFANTIL","Xalapa","11607 CENTRO DE INICIACIÓN MUSICAL INFANTIL",11607]
[11701,"DIRECCIÓN GENERAL DEL SISTEMA DE ENSEÑANZA ABIERTA","Xalapa","11701 DIRECCIÓN GENERAL DEL SISTEMA DE ENSEÑANZA ABIERTA",11701]
[11702,"ESCUELA PARA ESTUDIANTES EXTRANJEROS","Xalapa","11702 ESCUELA PARA ESTUDIANTES EXTRANJEROS",11702]
[11703,"DIRECCIÓN GENERAL DE LA UNIDAD DE ESTUDIOS DE POSGRADOS","Xalapa","11703 DIRECCIÓN GENERAL DE LA UNIDAD DE ESTUDIOS DE POSGRADOS",11703]
[11704,"DIRECCIÓN DE LA UNIVERSIDAD VERACRUZANA INTERCULTURAL","Xalapa","11704 DIRECCIÓN DE LA UNIVERSIDAD VERACRUZANA INTERCULTURAL",11704]
[11705,"DIRECCIÓN DE LOS CENTROS DE IDIOMAS","Xalapa","11705 DIRECCIÓN DE LOS CENTROS DE IDIOMAS",11705]
[11706,"COORDINACIÓN UNIVERSITARIA DE OBSERVATORIOS METROPOLITANOS","Xalapa","11706 COORDINACIÓN UNIVERSITARIA DE OBSERVATORIOS METROPOLITANOS",11706]
[11707,"CENTRO DE ESTUDIOS CHINA-VERACRUZ","Xalapa","11707 CENTRO DE ESTUDIOS CHINA-VERACRUZ",11707]
[11708,"COORDINACIÓN UNIVERSITARIA PARA LA SUSTENTABILIDAD","Xalapa","11708 COORDINACIÓN UNIVERSITARIA PARA LA SUSTENTABILIDAD",11708]
[11709,"CENTRO DE ECOALFABETIZACIÓN Y DIÁLOGO DE SABERES","Xalapa","11709 CENTRO DE ECOALFABETIZACIÓN Y DIÁLOGO DE SABERES",11709]
[11710,"DIRECCIÓN GENERAL DE RELACIONES INTERNACIONALES","Xalapa","11710 DIRECCIÓN GENERAL DE RELACIONES INTERNACIONALES",11710]
[11801,"TALLER LIBRE ARTES","Xalapa","11801 TALLER LIBRE ARTES",11801]
[11802,"CENTRO DE IDIOMAS","Xalapa","11802 CENTRO DE IDIOMAS",11802]
[11803,"ORGANIZACIÓN TEATRAL DE LA UNIVERSIDAD VERACRUZANA","Xalapa","11803 ORGANIZACIÓN TEATRAL DE LA UNIVERSIDAD VERACRUZANA",11803]
[11804,"ORBIS TERTIUS","Xalapa","11804 ORBIS TERTIUS",11804]
[11805,"CORO","Xalapa","11805 CORO",11805]
[11806,"GRUPO DE RECITALISTAS","Xalapa","11806 GRUPO DE RECITALISTAS",11806]
[11807,"ENSAMBLE CLÁSICO DE GUITARRAS","Xalapa","11807 ENSAMBLE CLÁSICO DE GUITARRAS",11807]
[11808,"ORQUESTA UNIVERSITARIA DE MÚSICA POPULAR","Xalapa","11808 ORQUESTA UNIVERSITARIA DE MÚSICA POPULAR",11808]
[11809,"TLEN HUICANI","Xalapa","11809 TLEN HUICANI",11809]
[11810,"BALLET FOLKLÓRICO","Xalapa","11810 BALLET FOLKLÓRICO",11810]
[11811,"ORQUESTA SINFÓNICA DE XALAPA","Xalapa","11811 ORQUESTA SINFÓNICA DE XALAPA",11811]
[11812,"ORQUESTA DE SALSA","Xalapa","11812 ORQUESTA DE SALSA",11812]
[11813,"GALERIA RAMÓN ALVA DE LA CANAL","Xalapa","11813 GALERIA RAMÓN ALVA DE LA CANAL",11813]
[11814,"TALLER DE LAUDERIA","Xalapa","11814 TALLER DE LAUDERIA",11814]
[11815,"COORDINACIÓN REGIONAL DE ACTIVIDADES DEPORTIVAS","Xalapa","11815 COORDINACIÓN REGIONAL DE ACTIVIDADES DEPORTIVAS",11815]
[11901,"ADMINISTRACIÓN CENTRAL","Xalapa","11901 ADMINISTRACIÓN CENTRAL",11901]
[11902,"RECTORÍA","Xalapa","11902 RECTORÍA",11902]
[11903,"COORDINACIÓN DE ASESORES","Xalapa","11903 COORDINACIÓN DE ASESORES",11903]
[11904,"OFICINA DEL ABOGADO GENERAL","Xalapa","11904 OFICINA DEL ABOGADO GENERAL",11904]
[11905,"DIRECCIÓN DE ASUNTOS JURIDICOS","Xalapa","11905 DIRECCIÓN DE ASUNTOS JURIDICOS",11905]
[11906,"CONTRALORÍA GENERAL","Xalapa","11906 CONTRALORÍA GENERAL",11906]
[11907,"DIRECCIÓN DE AUDITORÍA INTERNA","Xalapa","11907 DIRECCIÓN DE AUDITORÍA INTERNA",11907]
[11908,"DIRECCIÓN DE PLANEACIÓN INSTITUCIONAL","Xalapa","11908 DIRECCIÓN DE PLANEACIÓN INSTITUCIONAL",11908]
[11909,"COORDINACIÓN TÉCNICA","Xalapa","11909 COORDINACIÓN TÉCNICA",11909]
[11910,"DEFENSORÍA DE LOS DERECHOS DE LOS UNIVERSITARIOS","Xalapa","11910 DEFENSORÍA DE LOS DERECHOS DE LOS UNIVERSITARIOS",11910]
[11911,"DIRECCIÓN GENERAL DE TECNOLOGÍA DE INFORMACIÓN","Xalapa","11911 DIRECCIÓN GENERAL DE TECNOLOGÍA DE INFORMACIÓN",11911]
[11912,"DIRECCIÓN DE PROYECTOS, CONSTRUCCIONES Y MANTENIMIENTO","Xalapa","11912 DIRECCIÓN DE PROYECTOS, CONSTRUCCIONES Y MANTENIMIENTO",11912]
[11913,"SECRETARÍA DE LA RECTORÍA","Xalapa","11913 SECRETARÍA DE LA RECTORÍA",11913]
[11914,"DEPARTAMENTO DE CONSTRUCCIONES","Xalapa","11914 DEPARTAMENTO DE CONSTRUCCIONES",11914]
[11915,"DIRECCIÓN DE COMUNICACIÓN UNIVERSITARIA","Xalapa","11915 DIRECCIÓN DE COMUNICACIÓN UNIVERSITARIA",11915]
[11916,"DEPARTAMENTO DE CINEMATOGRAFÍA","Xalapa","11916 DEPARTAMENTO DE CINEMATOGRAFÍA",11916]
[11917,"DEPARTAMENTO DE RADIO","Xalapa","11917 DEPARTAMENTO DE RADIO",11917]
[11918,"DEPARTAMENTO DE MEDIOS AUDIOVISUALES","Xalapa","11918 DEPARTAMENTO DE MEDIOS AUDIOVISUALES",11918]
[11919,"DIRECCIÓN DE VINCULACIÓN GENERAL","Xalapa","11919 DIRECCIÓN DE VINCULACIÓN GENERAL",11919]
[11920,"SECRETARÍA ACADÉMICA","Xalapa","11920 SECRETARÍA ACADÉMICA",11920]
[11921,"DIRECCIÓN GENERAL DE AREA ACADÉMICA TÉCNICA","Xalapa","11921 DIRECCIÓN GENERAL DE AREA ACADÉMICA TÉCNICA",11921]
[11922,"DIRECCIÓN GENERAL DE ÁREA ACADÉMICA DE HUMANIDADES","Xalapa","11922 DIRECCIÓN GENERAL DE ÁREA ACADÉMICA DE HUMANIDADES",11922]
[11923,"DIRECCIÓN GENERAL DE ÁREA ACADÉMICA ECONÓMICO-ADMINISTRATIVA","Xalapa","11923 DIRECCIÓN GENERAL DE ÁREA ACADÉMICA ECONÓMICO-ADMINISTRATIVA",11923]
[11924,"DIRECCIÓN GENERAL DE ÁREA ACADÉMICA DE CIENCIAS DE LA SALUD","Xalapa","11924 DIRECCIÓN GENERAL DE ÁREA ACADÉMICA DE CIENCIAS DE LA SALUD",11924]
[11925,"DIRECCIÓN GENERAL DE ÁREA ACADÉMICA BIOLÓGICO-AGROPECUARIA","Xalapa","11925 DIRECCIÓN GENERAL DE ÁREA ACADÉMICA BIOLÓGICO-AGROPECUARIA",11925]
[11926,"DIRECCIÓN GENERAL DE ÁREA ACADÉMICA DE ARTES","Xalapa","11926 DIRECCIÓN GENERAL DE ÁREA ACADÉMICA DE ARTES",11926]
[11927,"DIRECCIÓN GENERAL DE INVESTIGACIONES","Xalapa","11927 DIRECCIÓN GENERAL DE INVESTIGACIONES",11927]
[11928,"DIRECCIÓN GENERAL DE DESARROLLO ACADÉMICO","Xalapa","11928 DIRECCIÓN GENERAL DE DESARROLLO ACADÉMICO",11928]
[11929,"DIRECCIÓN GENERAL ADMINISTRACIÓN ESCOLAR","Xalapa","11929 DIRECCIÓN GENERAL ADMINISTRACIÓN ESCOLAR",11929]
[11930,"DIRECCIÓN DE SERVICIOS ESCOLARES","Xalapa","11930 DIRECCIÓN DE SERVICIOS ESCOLARES",11930]
[11931,"DEPARTAMENTO DE CONTROL ESCOLAR","Xalapa","11931 DEPARTAMENTO DE CONTROL ESCOLAR",11931]
[11932,"COORDINACIÓN DE INTEGRACION SALARIAL","Xalapa","11932 COORDINACIÓN DE INTEGRACION SALARIAL",11932]
[11933,"DEPARTAMENTO DE EDUCACIÓN CONTINUA","Xalapa","11933 DEPARTAMENTO DE EDUCACIÓN CONTINUA",{"$f":"VALUE(A131)","v":11933}]
[11934,"DEPARTAMENTO DE POSGRADO","Xalapa","11934 DEPARTAMENTO DE POSGRADO",11934]
[11935,"DIRECCIÓN GENERAL DE BIBLIOTECAS","Xalapa","11935 DIRECCIÓN GENERAL DE BIBLIOTECAS",11935]
[11936,"COORDINACIÓN DE ADQUISICIÓN DE RECURSOS DOCUMENTALES","Xalapa","11936 COORDINACIÓN DE ADQUISICIÓN DE RECURSOS DOCUMENTALES",11936]
[11937,"COORDINACIÓN DE PROCESOS TÉCNICOS","Xalapa","11937 COORDINACIÓN DE PROCESOS TÉCNICOS",11937]
[11938,"COORDINACIÓN REGIONAL DE BIBLIOTECAS XALAPA","Xalapa","11938 COORDINACIÓN REGIONAL DE BIBLIOTECAS XALAPA",11938]
[11939,"OFICIALIA MAYOR","Xalapa","11939 OFICIALIA MAYOR",11939]
[11940,"DEPARTAMENTO DE SERVICIO SOCIAL","Xalapa","11940 DEPARTAMENTO DE SERVICIO SOCIAL",11940]
[11941,"DEPARTAMENTO DE SUPERACIÓN PERSONAL ACADÉMICA","Xalapa","11941 DEPARTAMENTO DE SUPERACIÓN PERSONAL ACADÉMICA",11941]
[11942,"DEPARTAMENTO DE PROGRAMAS DE PRODUCTIVIDAD ACADÉMICA","Xalapa","11942 DEPARTAMENTO DE PROGRAMAS DE PRODUCTIVIDAD ACADÉMICA",11942]
[11943,"SECRETARÍA DE ADMINISTRACIÓN Y FINANZAS","Xalapa","11943 SECRETARÍA DE ADMINISTRACIÓN Y FINANZAS",11943]
[11944,"DIRECCIÓN GENERAL DE RECURSOS FINANCIEROS","Xalapa","11944 DIRECCIÓN GENERAL DE RECURSOS FINANCIEROS",11944]
[11945,"DEPARTAMENTO DE CAJA","Xalapa","11945 DEPARTAMENTO DE CAJA",11945]
[11946,"DIRECCIÓN DE INGRESOS","Xalapa","11946 DIRECCIÓN DE INGRESOS",11946]
[11947,"DIRECCIÓN DE EGRESOS","Xalapa","11947 DIRECCIÓN DE EGRESOS",11947]
[11948,"DIRECCIÓN DE PRESUPUESTOS","Xalapa","11948 DIRECCIÓN DE PRESUPUESTOS",11948]
[11949,"DEPARTAMENTO DE CONTROL PRESUPUESTAL DEL GASTO","Xalapa","11949 DEPARTAMENTO DE CONTROL PRESUPUESTAL DEL GASTO",11949]
[11950,"DEPARTAMENTO DE CONTROL DE PLAZAS","Xalapa","11950 DEPARTAMENTO DE CONTROL DE PLAZAS",11950]
[11951,"DIRECCIÓN DE CONTABILIDAD","Xalapa","11951 DIRECCIÓN DE CONTABILIDAD",11951]
[11952,"DEPARTAMENTO DE AFECTACIÓN CONTABLE","Xalapa","11952 DEPARTAMENTO DE AFECTACIÓN CONTABLE",11952]
[11953,"DEPARTAMENTO DE ANÁLISIS E INTERPRETACIÓN DE ESTADOS FINANCIEROS","Xalapa","11953 DEPARTAMENTO DE ANÁLISIS E INTERPRETACIÓN DE ESTADOS FINANCIEROS",11953]
[11954,"DEPARTAMENTO DE CONTROL DE INVENTARIOS","Xalapa","11954 DEPARTAMENTO DE CONTROL DE INVENTARIOS",11954]
[11955,"DIRECCIÓN DE RECURSOS MATERIALES","Xalapa","11955 DIRECCIÓN DE RECURSOS MATERIALES",11955]
[11956,"DEPARTAMENTO DE ALMACEN","Xalapa","11956 DEPARTAMENTO DE ALMACEN",11956]
[11957,"DIRECCIÓN GENERAL DE RECURSOS HUMANOS","Xalapa","11957 DIRECCIÓN GENERAL DE RECURSOS HUMANOS",11957]
[11958,"DIRECCIÓN DE PERSONAL","Xalapa","11958 DIRECCIÓN DE PERSONAL",11958]
[11959,"DEPARTAMENTO DE CONTROL DE PERSONAL ACADÉMICO","Xalapa","11959 DEPARTAMENTO DE CONTROL DE PERSONAL ACADÉMICO",11959]
[11960,"DEPARTAMENTO DE CONTROL DE PERSONAL ADMINISTRATIVO","Xalapa","11960 DEPARTAMENTO DE CONTROL DE PERSONAL ADMINISTRATIVO",11960]
[11961,"DEPARTAMENTO DE PRESTACIONES","Xalapa","11961 DEPARTAMENTO DE PRESTACIONES",11961]
[11962,"DEPARTAMENTO DE CAPACITACIÓN","Xalapa","11962 DEPARTAMENTO DE CAPACITACIÓN",11962]
[11963,"DIRECCIÓN DE RELACIONES LABORALES","Xalapa","11963 DIRECCIÓN DE RELACIONES LABORALES",11963]
[11964,"DIRECCIÓN DE NÓMINAS","Xalapa","11964 DIRECCIÓN DE NÓMINAS",11964]
[11965,"DEPARTAMENTO DE CODIFICACIÓN","Xalapa","11965 DEPARTAMENTO DE CODIFICACIÓN",11965]
[11966,"DEPARTAMENTO DE VALIDACIÓN Y CONTROL","Xalapa","11966 DEPARTAMENTO DE VALIDACIÓN Y CONTROL",11966]
[11968,"DIRECCIÓN DE SERVICIOS DE RED E INFRAESTRUCTURA TECNOLÓGICA","Xalapa","11968 DIRECCIÓN DE SERVICIOS DE RED E INFRAESTRUCTURA TECNOLÓGICA",11968]
[11969,"DIRECCIÓN DE EXTENSIÓN DE SERVICIOS TECNOLÓGICOS","Xalapa","11969 DIRECCIÓN DE EXTENSIÓN DE SERVICIOS TECNOLÓGICOS",11969]
[11970,"DIRECCIÓN DE DESARROLLO INFORMÁTICO DE APOYO ACADÉMICO","Xalapa","11970 DIRECCIÓN DE DESARROLLO INFORMÁTICO DE APOYO ACADÉMICO",11970]
[11971,"DIRECCIÓN DE SERVICIOS INFORMATICOS ADMINISTRATIVOS","Xalapa","11971 DIRECCIÓN DE SERVICIOS INFORMATICOS ADMINISTRATIVOS",11971]
[11972,"UNIDAD DEL SISTEMA INTEGRAL DE INFORMACION UNIVERSITARIA","Xalapa","11972 UNIDAD DEL SISTEMA INTEGRAL DE INFORMACION UNIVERSITARIA",11972]
[11973,"DIRECCIÓN DE OPERATIVIDAD E IMPACTO DE LAS TECNOLOGÍAS INFORMACIÓN","Xalapa","11973 DIRECCIÓN DE OPERATIVIDAD E IMPACTO DE LAS TECNOLOGÍAS INFORMACIÓN",11973]
[11974,"UNIDAD DE ORGANIZACIÓN Y MÉTODOS","Xalapa","11974 UNIDAD DE ORGANIZACIÓN Y MÉTODOS",11974]
[11975,"DEPARTAMENTO DE SERVICIOS GENERALES","Xalapa","11975 DEPARTAMENTO DE SERVICIOS GENERALES",11975]
[11976,"UNIDAD DE SERVICIOS BIBLIOTECARIOS Y DE INFORMACIÓN","Xalapa","11976 UNIDAD DE SERVICIOS BIBLIOTECARIOS Y DE INFORMACIÓN",11976]
[11977,"DIRECCIÓN GENERAL DE DIFUSIÓN CULTURAL","Xalapa","11977 DIRECCIÓN GENERAL DE DIFUSIÓN CULTURAL",11977]
[11978,"DIRECCIÓN GENERAL DE LA UNIVERSIDAD VIRTUAL","Xalapa","11978 DIRECCIÓN GENERAL DE LA UNIVERSIDAD VIRTUAL",11978]
[11979,"DIRECCIÓN DEL ÁREA DE FORMACIÓN BÁSICA GENERAL","Xalapa","11979 DIRECCIÓN DEL ÁREA DE FORMACIÓN BÁSICA GENERAL",11979]
[11980,"DIRECCIÓN DE ACTIVIDADES DEPORTIVAS","Xalapa","11980 DIRECCIÓN DE ACTIVIDADES DEPORTIVAS",11980]
[11981,"DIRECCIÓN DE EDITORIAL","Xalapa","11981 DIRECCIÓN DE EDITORIAL",11981]
[11982,"DEPARTAMENTO DE DISTRIBUCIÓN","Xalapa","11982 DEPARTAMENTO DE DISTRIBUCIÓN",11982]
[11983,"COORDINACIÓN DE TRANSPARENCIA Y ACCESO A LA INFORMACIÓN","Xalapa","11983 COORDINACIÓN DE TRANSPARENCIA Y ACCESO A LA INFORMACIÓN",11983]
[11984,"DEPARTAMENTO DE EDUCACIÓN A DISTANCIA","Xalapa","11984 DEPARTAMENTO DE EDUCACIÓN A DISTANCIA",11984]
[11985,"JUNTA DE GOBIERNO","Xalapa","11985 JUNTA DE GOBIERNO",11985]
[11986,"DEPARTAMENTO DE COORDINACIÓN DE PROYECTOS","Xalapa","11986 DEPARTAMENTO DE COORDINACIÓN DE PROYECTOS",11986]
[11987,"DIRECCIÓN DE AUDITORÍA A ENTIDADES","Xalapa","11987 DIRECCIÓN DE AUDITORÍA A ENTIDADES",11987]
[11988,"DIRECCIÓN DE AUDITORÍA PATRIMONIAL","Xalapa","11988 DIRECCIÓN DE AUDITORÍA PATRIMONIAL",11988]
[11989,"DIRECCIÓN DE ANÁLISIS SITUACION PATRIMONIAL","Xalapa","11989 DIRECCIÓN DE ANÁLISIS SITUACION PATRIMONIAL",11989]
[11990,"DIRECCIÓN DE EVALUACION Y CONTROL PRESUPUESTAL","Xalapa","11990 DIRECCIÓN DE EVALUACION Y CONTROL PRESUPUESTAL",11990]
[11991,"DEPARTAMENTO DE MANTENIMIENTO","Xalapa","11991 DEPARTAMENTO DE MANTENIMIENTO",11991]
[11992,"DEPARTAMENTO DE PROYECTOS ESPECIALES","Xalapa","11992 DEPARTAMENTO DE PROYECTOS ESPECIALES",11992]
[11993,"DEPARTAMENTO DE TELEVISIÓN","Xalapa","11993 DEPARTAMENTO DE TELEVISIÓN",11993]
[11994,"DEPARTAMENTO DE PRENSA","Xalapa","11994 DEPARTAMENTO DE PRENSA",11994]
[11995,"DEPARTAMENTO DE VINCULACION SOCIAL","Xalapa","11995 DEPARTAMENTO DE VINCULACION SOCIAL",11995]
[11996,"DEPARTAMENTO DE VINCULACIÓN CON EL SECTOR PRODUCTIVO","Xalapa","11996 DEPARTAMENTO DE VINCULACIÓN CON EL SECTOR PRODUCTIVO",11996]
[11997,"DEPARTAMENTO DE CERTIFICACIÓN Y LEGALIZACIÓN DE DOCUMENTOS","Xalapa","11997 DEPARTAMENTO DE CERTIFICACIÓN Y LEGALIZACIÓN DE DOCUMENTOS",11997]
[11998,"DEPARTAMENTO DE NEGOCIACIONES","Xalapa","11998 DEPARTAMENTO DE NEGOCIACIONES",{"$f":"VALUE(A195)","v":11998}]
[11999,"DEPARTAMENTO DE VIDEOCONFERENCIAS","Xalapa","11999 DEPARTAMENTO DE VIDEOCONFERENCIAS",11999]
[12801,"TALLER LIBRE DE ARTES","Xalapa","12801 TALLER LIBRE DE ARTES",12801]
[13801,"TALLER LIBRE DE ARTES","Xalapa","13801 TALLER LIBRE DE ARTES",13801]
[21301,"FACULTAD DE ADMINISTRACIÓN","Veracruz","21301 FACULTAD DE ADMINISTRACIÓN",21301]
[21401,"UNIDAD ACADÉMICA DE CIENCIAS DE LA SALUD","Veracruz","21401 UNIDAD ACADÉMICA DE CIENCIAS DE LA SALUD",21401]
[21402,"FACULTAD DE MEDICINA","Veracruz","21402 FACULTAD DE MEDICINA",21402]
[21403,"FACULTAD DE BIOANÁLISIS","Veracruz","21403 FACULTAD DE BIOANÁLISIS",21403]
[21404,"FACULTAD DE NUTRICIÓN","Veracruz","21404 FACULTAD DE NUTRICIÓN",21404]
[21405,"FACULTAD DE PSICOLOGÍA","Veracruz","21405 FACULTAD DE PSICOLOGÍA",21405]
[21406,"FACULTAD DE ENFERMERÍA","Veracruz","21406 FACULTAD DE ENFERMERÍA",21406]
[21407,"INSTITUTO DE INVESTIGACIONES MÉDICO-BIOLÓGICAS","Veracruz","21407 INSTITUTO DE INVESTIGACIONES MÉDICO-BIOLÓGICAS",21407]
[21501,"FACULTAD DE MEDICINA, VETERINARIA Y ZOOTECNIA","Veracruz","21501 FACULTAD DE MEDICINA, VETERINARIA Y ZOOTECNIA",21501]
[21502,"RANCHO TORREÓN DEL MOLINO","Veracruz","21502 RANCHO TORREÓN DEL MOLINO",21502]
[21801,"TALLER LIBRE DE ARTES","Veracruz","21801 TALLER LIBRE DE ARTES",21801]
[21802,"ORQUESTA TRADICIONAL MOSCOVITA","Veracruz","21802 ORQUESTA TRADICIONAL MOSCOVITA",21802]
[21803,"NEMATATLÍN","Veracruz","21803 NEMATATLÍN",21803]
[22101,"FACULTAD DE INGENIERÍA","Veracruz","22101 FACULTAD DE INGENIERÍA",22101]
[22102,"INSTITUTO DE INGENIERÍA","Veracruz","22102 INSTITUTO DE INGENIERÍA",22102]
[22103,"CENTRO DE INVESTIGACIONES EN MICRO Y NANOTECNOLOGÍA","Veracruz","22103 CENTRO DE INVESTIGACIONES EN MICRO Y NANOTECNOLOGÍA",22103]
[22201,"FACULTAD DE CIENCIAS Y TÉCNICAS DE LA COMUNICACION","Veracruz","22201 FACULTAD DE CIENCIAS Y TÉCNICAS DE LA COMUNICACION",22201]
[22202,"FACULTAD DE PEDAGOGÍA","Veracruz","22202 FACULTAD DE PEDAGOGÍA",22202]
[22302,"FACULTAD DE CONTADURÍA","Veracruz","22302 FACULTAD DE CONTADURÍA",22302]
[22401,"FACULTAD DE ODONTOLOGÍA","Veracruz","22401 FACULTAD DE ODONTOLOGÍA",22401]
[22402,"FACULTAD DE EDUCACIÓN FÍSICA, DEPORTE Y RECREACIÓN","Veracruz","22402 FACULTAD DE EDUCACIÓN FÍSICA, DEPORTE Y RECREACIÓN",22402]
[22403,"INSTITUTO DE MEDICINA FORENSE","Veracruz","22403 INSTITUTO DE MEDICINA FORENSE",22403]
[22501,"INSTITUTO DE CIENCIAS MARINAS Y PESQUERIAS DE LA UNIVERSIDAD VERACRUZANA","Veracruz","22501 INSTITUTO DE CIENCIAS MARINAS Y PESQUERIAS DE LA UNIVERSIDAD VERACRUZANA",22501]
[22601,"CENTRO INICIACION MUSICAL INFANTIL","Veracruz","22601 CENTRO INICIACION MUSICAL INFANTIL",22601]
[22701,"COORDINACIÓN ACADÉMICA REGIONAL DE ENSEÑANZA ABIERTA","Veracruz","22701 COORDINACIÓN ACADÉMICA REGIONAL DE ENSEÑANZA ABIERTA",22701]
[22702,"CENTRO REGIONAL DE INFORMÁTICA VERACRUZ","Veracruz","22702 CENTRO REGIONAL DE INFORMÁTICA VERACRUZ",22702]
[22801,"CENTRO DE IDIOMAS","Veracruz","22801 CENTRO DE IDIOMAS",22801]
[22802,"COORDINACIÓN REGIONAL ACTIVIDADES DEPORTIVAS","Veracruz","22802 COORDINACIÓN REGIONAL ACTIVIDADES DEPORTIVAS",22802]
[22901,"VICE-RECTORÍA VERACRUZ","Veracruz","22901 VICE-RECTORÍA VERACRUZ",22901]
[22902,"SECRETARÍA ACADÉMICA REGIONAL","Veracruz","22902 SECRETARÍA ACADÉMICA REGIONAL",22902]
[22903,"SECRETARÍA ADMINISTRACIÓN Y FINANZAS REGIONAL","Veracruz","22903 SECRETARÍA ADMINISTRACIÓN Y FINANZAS REGIONAL",22903]
[22904,"COORDINACIÓN REGIONAL DE DIFUSIÓN CULTURAL Y EXTENSIÓN UNIVERSITARIA","Veracruz","22904 COORDINACIÓN REGIONAL DE DIFUSIÓN CULTURAL Y EXTENSIÓN UNIVERSITARIA",22904]
[22905,"COORDINACIÓN REGIONAL DE BIBLIOTECAS VERACRUZ","Veracruz","22905 COORDINACIÓN REGIONAL DE BIBLIOTECAS VERACRUZ",22905]
[22906,"UNIDAD DE SERVICIOS BIBLIOTECARIOS Y DE INFORMACIÓN","Veracruz","22906 UNIDAD DE SERVICIOS BIBLIOTECARIOS Y DE INFORMACIÓN",22906]
[22907,"CENTRO DE ESTUDIOS Y SERVICIOS EN SALUD","Veracruz","22907 CENTRO DE ESTUDIOS Y SERVICIOS EN SALUD",22907]
[22908,"COORDINACIÓN REGIONAL DEL ÁREA DE FORMACIÓN BÁSICA GENERAL","Veracruz","22908 COORDINACIÓN REGIONAL DEL ÁREA DE FORMACIÓN BÁSICA GENERAL",22908]
[31101,"FACULTAD DE CIENCIAS QUÍMICAS","Orizaba-Córdoba","31101 FACULTAD DE CIENCIAS QUÍMICAS",31101]
[31401,"FACULTAD DE ENFERMERÍA","Orizaba-Córdoba","31401 FACULTAD DE ENFERMERÍA",31401]
[31413,"INSTITUTO DE PSICOLGÍA Y EDUCACIÓN (CEEORI)","Orizaba-Córdoba","31413 INSTITUTO DE PSICOLGÍA Y EDUCACIÓN (CEEORI)",31413]
[31701,"COORDINACIÓN ACADÉMICA REGIONAL DE ENSEÑANZA ABIERTA","Orizaba-Córdoba","31701 COORDINACIÓN ACADÉMICA REGIONAL DE ENSEÑANZA ABIERTA",31701]
[31702,"CENTRO REGIONAL DE INFORMÁTICA ORIZABA","Orizaba-Córdoba","31702 CENTRO REGIONAL DE INFORMÁTICA ORIZABA",31702]
[31801,"CENTRO DE IDIOMAS","Orizaba-Córdoba","31801 CENTRO DE IDIOMAS",31801]
[31802,"COORDINACIÓN REGIONAL DE ACTIVIDADES DEPORTIVAS","Orizaba-Córdoba","31802 COORDINACIÓN REGIONAL DE ACTIVIDADES DEPORTIVAS",31802]
[31901,"VICE-RECTORÍA","Orizaba-Córdoba","31901 VICE-RECTORÍA",31901]
[31902,"SECRETARÍA ACADÉMICA REGIONAL","Orizaba-Córdoba","31902 SECRETARÍA ACADÉMICA REGIONAL",31902]
[31903,"SECRETARÍA DE ADMINISTRACIÓN Y FINANZAS REGIONAL","Orizaba-Córdoba","31903 SECRETARÍA DE ADMINISTRACIÓN Y FINANZAS REGIONAL",31903]
[31904,"COORDINACIÓN REGIONAL DE DIFUSIÓN CULTURAL Y EXTENSIÓN UNIVERSITARIA","Orizaba-Córdoba","31904 COORDINACIÓN REGIONAL DE DIFUSIÓN CULTURAL Y EXTENSIÓN UNIVERSITARIA",31904]
[31905,"COORDINACIÓN REGIONAL DE BIBLIOTECAS ORIZABA-CORDOBA","Orizaba-Córdoba","31905 COORDINACIÓN REGIONAL DE BIBLIOTECAS ORIZABA-CORDOBA",31905]
[31908,"COORDINACIÓN REGIONAL DEL ÁREA DE FORMACIÓN BÁSICA GENERAL","Orizaba-Córdoba","31908 COORDINACIÓN REGIONAL DEL ÁREA DE FORMACIÓN BÁSICA GENERAL",31908]
[32101,"FACULTAD DE ARQUITECTURA","Orizaba-Córdoba","32101 FACULTAD DE ARQUITECTURA",32101]
[32413,"INSTITUTO DE PSICOLOGÍA Y EDUCACIÓN","Orizaba-Córdoba","32413 INSTITUTO DE PSICOLOGÍA Y EDUCACIÓN",32413]
[32801,"CENTRO DE IDIOMAS","Orizaba-Córdoba","32801 CENTRO DE IDIOMAS",32801]
[32908,"COORDINACIÓN REGIONAL DEL ÁREA DE FORMACIÓN BÁSICA GENERAL","Orizaba-Córdoba","32908 COORDINACIÓN REGIONAL DEL ÁREA DE FORMACIÓN BÁSICA GENERAL",32908]
[33101,"FACULTAD DE INGENIERÍA MECÁNICA ELÉCTRICA","Orizaba-Córdoba","33101 FACULTAD DE INGENIERÍA MECÁNICA ELÉCTRICA",33101]
[33401,"FACULTAD DE MEDICINA","Orizaba-Córdoba","33401 FACULTAD DE MEDICINA",33401]
[34301,"FACULTAD DE CONTADURÍA Y ADMINISTRACIÓN","Orizaba-Córdoba","34301 FACULTAD DE CONTADURÍA Y ADMINISTRACIÓN",34301]
[35501,"FACULTAD DE CIENCIAS BIOLÓGICAS Y AGROPECUARIAS","Orizaba-Córdoba","35501 FACULTAD DE CIENCIAS BIOLÓGICAS Y AGROPECUARIAS",35501]
[36401,"FACULTAD DE ODONTOLOGÍA","Orizaba-Córdoba","36401 FACULTAD DE ODONTOLOGÍA",36401]
[41101,"FACULTAD DE INGENIERÍA CIVIL","PozaRica-Tuxpan","41101 FACULTAD DE INGENIERÍA CIVIL",41101]
[41102,"FACULTAD DE CIENCIAS QUÍMICAS","PozaRica-Tuxpan","41102 FACULTAD DE CIENCIAS QUÍMICAS",41102]
[41103,"FACULTAD DE ARQUITECTURA","PozaRica-Tuxpan","41103 FACULTAD DE ARQUITECTURA",{"$f":"VALUE(A259)","v":41103}]
[41104,"FACULTAD DE INGENIERÍA MECÁNICA Y ELÉCTRICA","PozaRica-Tuxpan","41104 FACULTAD DE INGENIERÍA MECÁNICA Y ELÉCTRICA",41104]
[41105,"FACULTAD DE INGENIERÍA EN ELECTRÓNICA Y COMUNICACIONES","PozaRica-Tuxpan","41105 FACULTAD DE INGENIERÍA EN ELECTRÓNICA Y COMUNICACIONES",41105]
[41201,"FACULTAD DE PEDAGOGÍA","PozaRica-Tuxpan","41201 FACULTAD DE PEDAGOGÍA",41201]
[41202,"FACULTAD DE TRABAJO SOCIAL","PozaRica-Tuxpan","41202 FACULTAD DE TRABAJO SOCIAL",41202]
[41401,"UNIDAD ACADÉMICA DE CIENCIAS DE LA SALUD","PozaRica-Tuxpan","41401 UNIDAD ACADÉMICA DE CIENCIAS DE LA SALUD",41401]
[41402,"FACULTAD DE MEDICINA","PozaRica-Tuxpan","41402 FACULTAD DE MEDICINA",41402]
[41403,"FACULTAD DE ODONTOLOGÍA","PozaRica-Tuxpan","41403 FACULTAD DE ODONTOLOGÍA",41403]
[41404,"FACULTAD DE PSICOLOGÍA","PozaRica-Tuxpan","41404 FACULTAD DE PSICOLOGÍA",41404]
[41405,"FACULTAD DE ENFERMERÍA","PozaRica-Tuxpan","41405 FACULTAD DE ENFERMERÍA",41405]
[41701,"COORDINACIÓN ACADÉMICA REGIONAL DE ENSEÑANZA ABIERTA","PozaRica-Tuxpan","41701 COORDINACIÓN ACADÉMICA REGIONAL DE ENSEÑANZA ABIERTA",41701]
[41702,"CENTRO REGIONAL DE INFORMÁTICA","PozaRica-Tuxpan","41702 CENTRO REGIONAL DE INFORMÁTICA",41702]
[41801,"TALLER LIBRE DE ARTES","PozaRica-Tuxpan","41801 TALLER LIBRE DE ARTES",41801]
[41802,"CENTRO DE IDIOMAS","PozaRica-Tuxpan","41802 CENTRO DE IDIOMAS",41802]
[41803,"COORDINACIÓN REGIONAL DE ACTIVIDADES DEPORTIVAS","PozaRica-Tuxpan","41803 COORDINACIÓN REGIONAL DE ACTIVIDADES DEPORTIVAS",41803]
[41901,"VICE-RECTORÍA","PozaRica-Tuxpan","41901 VICE-RECTORÍA",41901]
[41902,"SECRETARÍA ACADÉMICA REGIONAL","PozaRica-Tuxpan","41902 SECRETARÍA ACADÉMICA REGIONAL",41902]
[41903,"SECRETARÍA DE ADMINISTRACIÓN Y FINANZAS REGIONAL","PozaRica-Tuxpan","41903 SECRETARÍA DE ADMINISTRACIÓN Y FINANZAS REGIONAL",41903]
[41904,"COORDINACIÓN REGIONAL DE DIFUSIÓN CULTURAL Y EXTENSIÓN UNIVERSITARIA","PozaRica-Tuxpan","41904 COORDINACIÓN REGIONAL DE DIFUSIÓN CULTURAL Y EXTENSIÓN UNIVERSITARIA",41904]
[41905,"COORDINACIÓN REGIONAL DE BIBLIOTECAS POZA RICA-TUXPAN","PozaRica-Tuxpan","41905 COORDINACIÓN REGIONAL DE BIBLIOTECAS POZA RICA-TUXPAN",41905]
[41906,"UNIDAD DE SERVICIOS BIBLIOTECARIOS Y DE INFORMACIÓN","PozaRica-Tuxpan","41906 UNIDAD DE SERVICIOS BIBLIOTECARIOS Y DE INFORMACIÓN",41906]
[41908,"COORDINACIÓN REGIONAL DEL ÁREA DE FORMACIÓN BÁSICA GENERAL","PozaRica-Tuxpan","41908 COORDINACIÓN REGIONAL DEL ÁREA DE FORMACIÓN BÁSICA GENERAL",41908]
[42301,"FACULTAD DE CONTADURÍA","PozaRica-Tuxpan","42301 FACULTAD DE CONTADURÍA",42301]
[42501,"FACULTAD DE CIENCIAS BIOLÓGICAS Y AGROPECUARIAS","PozaRica-Tuxpan","42501 FACULTAD DE CIENCIAS BIOLÓGICAS Y AGROPECUARIAS",42501]
[42908,"COORDINACIÓN REGIONAL DEL ÁREA DE FORMACION BÁSICA GENERAL","PozaRica-Tuxpan","42908 COORDINACIÓN REGIONAL DEL ÁREA DE FORMACION BÁSICA GENERAL",42908]
[43801,"TALLER LIBRE DE ARTES","PozaRica-Tuxpan","43801 TALLER LIBRE DE ARTES",43801]
[51101,"FACULTAD DE INGENIERÍA CIVIL Y MECÁNICA ELÉCTRICA","Coatzacoalcos-Minatitlán","51101 FACULTAD DE INGENIERÍA CIVIL Y MECÁNICA ELÉCTRICA",51101]
[51102,"FACULTAD DE CIENCIAS QUÍMICAS","Coatzacoalcos-Minatitlán","51102 FACULTAD DE CIENCIAS QUÍMICAS",51102]
[51301,"FACULTAD DE CONTADURÍA Y ADMINISTRACIÓN","Coatzacoalcos-Minatitlán","51301 FACULTAD DE CONTADURÍA Y ADMINISTRACIÓN",51301]
[51401,"ESCUELA DE ENFERMERIA","Coatzacoalcos-Minatitlán","51401 ESCUELA DE ENFERMERIA",51401]
[51701,"COORDINACIÓN ACADÉMICA REGIONAL DE ENSEÑANZA ABIERTA","Coatzacoalcos-Minatitlán","51701 COORDINACIÓN ACADÉMICA REGIONAL DE ENSEÑANZA ABIERTA",51701]
[51702,"CENTRO REGIONAL DE INFORMÁTICA COATZACOALCOS","Coatzacoalcos-Minatitlán","51702 CENTRO REGIONAL DE INFORMÁTICA COATZACOALCOS",51702]
[51801,"CENTRO DE IDIOMAS","Coatzacoalcos-Minatitlán","51801 CENTRO DE IDIOMAS",51801]
[51802,"COORDINACIÓN REGIONAL DE ACTIVIDADES DEPORTIVAS","Coatzacoalcos-Minatitlán","51802 COORDINACIÓN REGIONAL DE ACTIVIDADES DEPORTIVAS",51802]
[51901,"VICE-RECTORÍA","Coatzacoalcos-Minatitlán","51901 VICE-RECTORÍA",51901]
[51902,"SECRETARÍA ACADÉMICA REGIONAL","Coatzacoalcos-Minatitlán","51902 SECRETARÍA ACADÉMICA REGIONAL",51902]
[51903,"SECRETARÍA DE ADMINISTRACIÓN Y FINANZAS REGIONAL","Coatzacoalcos-Minatitlán","51903 SECRETARÍA DE ADMINISTRACIÓN Y FINANZAS REGIONAL",51903]
[51904,"COORDINACIÓN REGIONAL DE DIFUSIÓN CULTURAL Y EXTENSIÓN UNIVERSITARIA","Coatzacoalcos-Minatitlán","51904 COORDINACIÓN REGIONAL DE DIFUSIÓN CULTURAL Y EXTENSIÓN UNIVERSITARIA",51904]
[51905,"COORDINACIÓN REGIONAL DE BIBLIOTECAS COATZACOALCOS-MINATITLÁN","Coatzacoalcos-Minatitlán","51905 COORDINACIÓN REGIONAL DE BIBLIOTECAS COATZACOALCOS-MINATITLÁN",51905]
[51906,"UNIDAD DE SERVICIOS BIBLIOTECARIOS Y DE INFORMACIÓN","Coatzacoalcos-Minatitlán","51906 UNIDAD DE SERVICIOS BIBLIOTECARIOS Y DE INFORMACIÓN",51906]
[51908,"COORDINACIÓN REGIONAL DEL ÁREA DE FORMACIÓN BÁSICA GENERAL","Coatzacoalcos-Minatitlán","51908 COORDINACIÓN REGIONAL DEL ÁREA DE FORMACIÓN BÁSICA GENERAL",51908]
[52201,"FACULTAD DE TRABAJO SOCIAL","Coatzacoalcos-Minatitlán","52201 FACULTAD DE TRABAJO SOCIAL",52201]
[52401,"UNIDAD ACADÉMICA DE CIENCIAS DE LA SALUD Y TRABAJO SOCIAL","Coatzacoalcos-Minatitlán","52401 UNIDAD ACADÉMICA DE CIENCIAS DE LA SALUD Y TRABAJO SOCIAL",52401]
[52402,"FACULTAD DE ODONTOLOGÍA","Coatzacoalcos-Minatitlán","52402 FACULTAD DE ODONTOLOGÍA",52402]
[52403,"FACULTAD DE MEDICINA","Coatzacoalcos-Minatitlán","52403 FACULTAD DE MEDICINA",52403]
[52404,"FACULTAD DE ENFERMERÍA","Coatzacoalcos-Minatitlán","52404 FACULTAD DE ENFERMERÍA",52404]
[52701,"CENTRO REGIONAL DE INFORMÁTICA MINATITLÁN","Coatzacoalcos-Minatitlán","52701 CENTRO REGIONAL DE INFORMÁTICA MINATITLÁN",52701]
[52901,"UNIDAD DE SERVICIOS BIBLIOTECARIOS Y DE INFORMACIÓN","Coatzacoalcos-Minatitlán","52901 UNIDAD DE SERVICIOS BIBLIOTECARIOS Y DE INFORMACIÓN",52901]
[53501,"FACULTAD INGENIERÍA EN SISTEMAS DE PRODUCCIÓN AGROPECUARIA","Coatzacoalcos-Minatitlán","53501 FACULTAD INGENIERÍA EN SISTEMAS DE PRODUCCIÓN AGROPECUARIA",53501]
[99999,"Organización Fuera de la Universidad o Proveedor ","Otra",null,99999]

{"sheet":"CDir","index":3,"n_rows":8,"n_cols":5,"rows_kept":8,"cut":false,"hidden":true,"merged":[]}
["Direcciones DGI"]
["Seleccione nombre de personal DGTI"," "," "," "," "]
["MCTE. Juan Carlos Jiménez Márquez","Dirección General de Tecnológia de Información","Director General","jjimenez@uv.mx",11786]
["M.R.T. Héctor Bonola Virues","Dirección de Servicios de Red e Infraestructura Tecnológica","Director de Área","hbonola@uv.mx",11790]
["Ing. Juan Avila López","Dirección General de Tecnológia de Información","Coordinador Regional de TI Veracruz","javila@uv.mx","22115, 22310"]
["I.I.E. Eli Centeotl Hernández Hernández","Dirección General de Tecnológia de Información","Coordinador Regional de TI Orizaba-Córdoba","elichernandez@uv.mx",33205]
["Ing. Edgar Martinez Espinoza","Dirección General de Tecnológia de Información","Coordinador Regional de TI Coatzacoalcos","edgmartinez@uv.mx",51215]
["Ing. Antonio Robles Guerra","Dirección General de Tecnológia de Información","Coordinador Regional de TI PozaRica-Tuxpan","arobles@uv.mx",41120]

{"sheet":"Servicios","index":4,"n_rows":5,"n_cols":7,"rows_kept":5,"cut":false,"hidden":true,"merged":[]}
[null,"Alta",null,"Permanente",null,"Xalapa","depserv@uv.mx"]
[null,"Baja",null,"Temporal",null,"Veracruz","dgtiver@uv.mx"]
[null,"Cambio",null,null,null,"Orizaba-Córdoba","dgtiorizaba@uv.mx"]
[null,"Suspensión",null,null,null,"Coatzacoalcos-Minatitlán","dgticoatza@uv.mx"]
[null,null,null,null,null,"PozaRica-Tuxpan","dgtipozarica@uv.mx"]

{"sheet":"Region","index":5,"n_rows":1,"n_cols":1,"rows_kept":1,"cut":false,"hidden":true,"merged":[]}
["Region"]